fUST/lending_fUST_20240713
["ID","MTS","AMOUNT","RATE_DAILY","PERIOD"]
[331929140,1720859441429,-153.0,0.00024825,2]
[331929141,1720859441438,-153.0,0.00024825,2]
[331929142,1720859441448,-153.0,0.00024825,2]
[331929143,1720859441457,-153.0,0.00024825,2]
[331929144,1720859441467,-153.0,0.00024825,2]
[331929145,1720859441476,-153.0,0.00024825,2]
[331929146,1720859441485,-153.0,0.00024825,2]
[331929147,1720859441495,-153.0,0.00024825,2]
[331929148,1720859441504,-273.0,0.00024825,2]
[331929149,1720859441514,-273.0,0.00024825,2]
[331929150,1720859441523,-273.0,0.00024825,2]
[331929151,1720859441534,-273.0,0.00024825,2]
[331929152,1720859441545,-273.0,0.00024825,2]
[331929153,1720859441554,-273.0,0.00024825,2]
[331929154,1720859441564,-273.0,0.00024825,2]
[331929155,1720859441574,-273.0,0.00024825,2]
[331929156,1720859441588,-273.0,0.00024825,2]
[331929157,1720859441597,-273.0,0.00024825,2]
[331929158,1720859441607,-273.0,0.00024825,2]
[331929159,1720859441616,-273.0,0.00024825,2]
[331929160,1720859441627,-273.0,0.00024825,2]
[331929161,1720859441637,-273.0,0.00024825,2]
[331929162,1720859441648,-153.0,0.00024825,2]
[331929163,1720859441658,-153.0,0.00024825,2]
[331929164,1720859441668,-153.0,0.00024825,2]
[331929165,1720859441678,-153.0,0.00024825,2]
[331929166,1720859441687,-153.0,0.00024825,2]
[331929167,1720859441696,-153.0,0.00024825,2]
[331929168,1720859441706,-153.0,0.00024825,2]
[331929169,1720859441716,-153.0,0.00024825,2]
[331929170,1720859441726,-153.0,0.00024825,2]
[331929171,1720859441735,-153.0,0.00024825,2]
[331929172,1720859441745,-273.0,0.00024825,2]
[331929173,1720859441754,-273.0,0.00024825,2]
[331929174,1720859441763,-273.0,0.00024825,2]
[331929175,1720859441773,-273.0,0.00024825,2]
[331929176,1720859441783,-273.0,0.00024825,2]
[331929177,1720859441793,-273.0,0.00024825,2]
[331929178,1720859441803,-273.0,0.00024825,2]
[331929179,1720859441812,-273.0,0.00024825,2]
[331929180,1720859441821,-273.0,0.00024825,2]
[331929181,1720859441831,-273.0,0.00024825,2]
[331929182,1720859441841,-273.0,0.00024825,2]
[331929183,1720859441850,-273.0,0.00024825,2]
[331929184,1720859441859,-273.0,0.00024825,2]
[331929185,1720859441867,-273.0,0.00024825,2]
[331929186,1720859441878,-153.0,0.00024826,2]
[331929187,1720859441887,-153.0,0.00024826,2]
[331929188,1720859441897,-153.0,0.00024826,2]
[331929189,1720859441906,-153.0,0.00024826,2]
[331929190,1720859441916,-153.0,0.00024826,2]
[331929191,1720859441925,-153.0,0.00024826,2]
[331929192,1720859441934,-153.0,0.00024826,2]
[331929193,1720859441944,-153.0,0.00024826,2]
[331929194,1720859441954,-153.0,0.00024826,2]
[331929195,1720859441963,-153.0,0.00024826,2]
[331929196,1720859441972,-273.0,0.00024826,2]
[331929197,1720859441983,-273.0,0.00024826,2]
[331929198,1720859441992,-273.0,0.00024826,2]
[331929199,1720859442002,-273.0,0.00024826,2]
[331929200,1720859442011,-273.0,0.00024826,2]
[331929201,1720859442021,-273.0,0.00024826,2]
[331929202,1720859442031,-273.0,0.00024826,2]
[331929203,1720859442041,-273.0,0.00024826,2]
[331929204,1720859442051,-273.0,0.00024826,2]
[331929205,1720859442061,-273.0,0.00024826,2]
[331929206,1720859442072,-273.0,0.00024826,2]
[331929207,1720859442082,-273.0,0.00024826,2]
[331929208,1720859442091,-273.0,0.00024826,2]
[331929209,1720859442102,-273.0,0.00024826,2]
[331929210,1720859442112,-153.0,0.00024826,2]
[331929211,1720859442121,-273.0,0.00024826,2]
[331929212,1720859442131,-273.0,0.00024826,2]
[331929213,1720859442140,-273.0,0.00024826,2]
[331929214,1720859442150,-273.0,0.00024826,2]
[331929215,1720859442159,-273.0,0.00024826,2]
[331929216,1720859442169,-273.0,0.00024826,2]
[331929217,1720859442179,-273.0,0.00024826,2]
[331929218,1720859442190,-273.0,0.00024826,2]
[331929219,1720859442201,-273.0,0.00024826,2]
[331929220,1720859442210,-273.0,0.00024826,2]
[331929221,1720859442220,-273.0,0.00024826,2]
[331929222,1720859442230,-273.0,0.00024826,2]
[331929223,1720859442239,-273.0,0.00024826,2]
[331929224,1720859442249,-273.0,0.00024826,2]
[331929225,1720859442258,-273.0,0.00024826,2]
[331929226,1720859442268,-273.0,0.00024826,2]
[331929227,1720859442278,-500.0,0.00024857,2]
[331929228,1720859442290,-183.04969827,0.00024899,2]
[331929229,1720859442301,-500.0,0.0002493,2]
[331929230,1720859442310,-500.0,0.0002493,2]
[331929231,1720859442322,-1446.03,0.00024931,2]
[331929232,1720859442332,-154.8107839,0.00024931,2]
[331929233,1720859442343,-500.0,0.00024931,2]
[331929234,1720859442353,-500.0,0.00024931,2]
[331929235,1720859442363,-500.0,0.00024931,2]
[331929236,1720859442373,-500.0,0.00024931,2]
[331929237,1720859442384,-609.92725813,0.00024931,2]
[331929238,1720859442395,-500.0,0.00024931,2]
[331929239,1720859442406,-500.0,0.00024931,2]
[331929240,1720859442416,-190.96,0.00024931,2]
[331929241,1720859442426,-341.8,0.00024931,2]
[331929242,1720859442435,-500.0,0.00024931,2]
[331929243,1720859442445,-500.0,0.00024931,2]
[331929244,1720859442454,-606.92,0.00024931,2]
[331929245,1720859442464,-500.0,0.00024931,2]
[331929246,1720859442474,-500.0,0.00024931,2]
[331929247,1720859442483,-1274.38,0.00024931,2]
[331929248,1720859442494,-500.0,0.00024931,2]
[331929249,1720859442503,-3559.29,0.00024931,2]
[331929250,1720859442513,-500.0,0.00024931,2]
[331929251,1720859442522,-500.0,0.00024931,2]
[331929252,1720859442531,-1367.75,0.00024931,2]
[331929253,1720859442540,-168.80151027,0.00024931,2]
[331929254,1720859442649,-242.78023582,0.00024931,2]
[331929255,1720859442660,-283.7509641,0.00024931,2]
[331929256,1720859442672,-216.2490359,0.00024931,2]
[331929257,1720859442681,-230.7743351,0.00024931,2]
[331929258,1720859442692,-269.2256649,0.00024931,2]
[331929259,1720859442702,-500.0,0.00024931,2]
[331929260,1720859442712,-500.0,0.00024931,2]
[331929261,1720859442721,-425.7543351,0.00024931,2]
[331929274,1720859443601,-74.41812545,0.0002477,3]
[331929312,1720860432207,-158.35036999,0.00021095,2]
[331929313,1720860432227,-198.518896,0.00021096,2]
[331929314,1720860432248,-200.089232,0.00022395,2]
[331929315,1720860432268,-229.12742298,0.0002243,2]
[331929316,1720860432289,-150.0,0.00022726,2]
[331929317,1720860432310,-250.0,0.00022809,2]
[331929318,1720860432330,-250.0,0.00023018,2]
[331929319,1720860432351,-802.560694,0.00023148,2]
[331929320,1720860432370,-629.83555434,0.00024396,2]
[331929321,1720860432390,-1361.19830126,0.00024437,2]
[331929322,1720860432411,-300.0,0.00024656,2]
[331929323,1720860432431,-502.17167802,0.00024657,2]
[331929324,1720860432453,-154.8107839,0.00024657,2]
[331929325,1720860432474,-1385.78,0.00024657,2]
[331929326,1720860432494,-356.90920648,0.00024657,2]
[331929327,1720860443176,-238.265543,0.00021096,2]
[331929328,1720860443201,-143.09079352,0.00024657,2]
[331929329,1720860443224,-500.0,0.00024657,2]
[331929330,1720860443245,-48.74170829,0.00024657,2]
[331929593,1720860641383,-150.0,0.00022557,2]
[331929594,1720860641394,-391.97946,0.00023687,2]
[331929650,1720861193196,3088.66857407,0.00016255,2]
[331929656,1720861467875,156.74630989,0.00016255,2]
[331929658,1720861495776,212.96663992,0.00016255,2]
[331929660,1720861635127,-591.2931009,0.00018899,2]
[331929661,1720861635148,-226.352265,0.00021096,2]
[331929662,1720861635170,-154.57491897,0.00021917,2]
[331929663,1720861635191,-154.57491897,0.00021917,2]
[331929664,1720861635214,-687.07395224,0.0002243,2]
[331929665,1720861635235,-200.089232,0.00022748,2]
[331929666,1720861635257,-161.923582,0.0002328,2]
[331929667,1720861635279,-205.290617,0.00023339,2]
[331929668,1720861635302,-158.19818029,0.00023455,2]
[331929669,1720861635323,-1000.0,0.00023687,2]
[331929670,1720861635346,-1544.06783411,0.00023687,3]
[331929839,1720861841943,-445.69290022,0.00022943,2]
[331929840,1720861841953,-205.2906175,0.00023452,2]
[331929841,1720861841962,-160.11041109,0.00023453,2]
[331929842,1720861841973,-677.44336581,0.00023687,3]
[331929843,1720861841983,-1000.0,0.00023687,2]
[331929844,1720861841993,-3485.8674629,0.00024331,2]
[331929845,1720861842002,-1361.19830126,0.00024453,2]
[331929846,1720861842011,-194.69079961,0.00024491,5]
[331929847,1720861842020,-3485.8674629,0.00024491,2]
[331929848,1720861842030,-300.0,0.00024499,2]
[331929849,1720861842039,-200.0,0.00024658,15]
[331929851,1720861842049,-380.0,0.00024658,2]
[331929853,1720861842058,-1204.39336614,0.00024664,2]
[331929855,1720861842068,-713.54381696,0.00024668,2]
[331929857,1720861842077,-2928.12741897,0.00024758,3]
[331929858,1720861842087,-500.0,0.00024762,2]
[331929859,1720861842096,-500.0,0.00024762,2]
[331929860,1720861842105,-500.0,0.00024762,2]
[331929861,1720861842115,-500.0,0.00024763,2]
[331929862,1720861842125,-500.0,0.00024763,2]
[331929863,1720861842134,-500.0,0.00024763,2]
[331929864,1720861842144,-3410.98,0.00024763,2]
[331929865,1720861842154,-500.0,0.00024763,2]
[331929866,1720861842163,-500.0,0.00024763,2]
[331929867,1720861842173,-500.0,0.00024763,2]
[331929868,1720861842183,-500.0,0.00024763,2]
[331929869,1720861842193,-500.0,0.00024763,2]
[331929870,1720861842204,-1468.93,0.00024763,2]
[331929871,1720861842215,-500.0,0.00024763,2]
[331929872,1720861842224,-500.0,0.00024763,2]
[331929875,1720861842234,-500.0,0.00024763,2]
[331929877,1720861842243,-500.0,0.00024763,2]
[331929879,1720861842252,-500.0,0.00024763,2]
[331929881,1720861842262,-500.0,0.00024763,2]
[331929883,1720861842271,-137.39555453,0.00024763,2]
[331929892,1720861842791,-362.60444547,0.00024763,2]
[331929893,1720861842801,-500.0,0.00024763,2]
[331929894,1720861842811,-6.52146922,0.00024763,2]
[331929895,1720861842860,-493.47853078,0.00024763,2]
[331929896,1720861842870,-500.0,0.00024764,2]
[331929897,1720861842879,-500.0,0.00024764,2]
[331929898,1720861842889,-502.62497532,0.00024764,2]
[331929899,1720861842898,-500.91945503,0.00024764,2]
[331929900,1720861842908,-500.0,0.00024764,2]
[331929901,1720861842917,-500.0,0.00024764,2]
[331929902,1720861842926,-500.0,0.00024764,2]
[331929903,1720861842937,-528.45,0.00024764,2]
[331929904,1720861842946,-500.0,0.00024764,2]
[331929905,1720861842955,-1328.04,0.00024764,2]
[331929906,1720861842964,-500.0,0.00024764,2]
[331929907,1720861842973,-500.0,0.00024764,2]
[331929909,1720861842983,-500.0,0.00024764,2]
[331929912,1720861842993,-500.0,0.00024764,2]
[331929913,1720861843002,-500.0,0.00024764,2]
[331929916,1720861843012,-466.49896084,0.00024764,2]
[331929919,1720861843022,-500.0,0.00024764,2]
[331929921,1720861843031,-512.19145943,0.00024764,2]
[331929923,1720861843040,-535.31,0.00024764,2]
[331929925,1720861843049,-501.12195476,0.00024764,2]
[331929926,1720861843059,-419.2504032,0.00024764,2]
[331929927,1720861843068,-500.0,0.00024764,2]
[331929928,1720861843077,-502.78434867,0.00024764,2]
[331929929,1720861843085,-500.0,0.00024764,2]
[331929930,1720861843093,-539.94,0.00024764,2]
[331929931,1720861843103,-500.0,0.00024764,2]
[331929932,1720861843112,-500.0,0.00024764,2]
[331929933,1720861843122,-500.0,0.00024764,2]
[331929934,1720861843131,-500.51977609,0.00024764,2]
[331929935,1720861843141,-504.55226203,0.00024764,2]
[331929936,1720861843150,-501.51772344,0.00024764,2]
[331929937,1720861843160,-500.0,0.00024764,2]
[331929938,1720861843169,-602.96,0.00024764,2]
[331929939,1720861843178,-190.96,0.00024764,2]
[331929940,1720861843189,-500.0,0.00024764,2]
[331929941,1720861843199,-341.8,0.00024764,2]
[331929942,1720861843208,-500.0,0.00024764,2]
[331929943,1720861843219,-500.0,0.00024764,2]
[331929944,1720861843229,-500.0,0.00024764,2]
[331929945,1720861843240,-392.29,0.00024764,2]
[331929946,1720861843249,-500.0,0.00024764,2]
[331929947,1720861843258,-500.0,0.00024764,2]
[331929948,1720861843267,-500.0,0.00024764,2]
[331929949,1720861843277,-606.92,0.00024764,2]
[331929950,1720861843288,-500.0,0.00024764,2]
[331929951,1720861843298,-501.28891435,0.00024764,2]
[331929952,1720861843309,-500.0,0.00024764,2]
[331929953,1720861843319,-500.0,0.00024764,2]
[331929954,1720861843331,-1242.11,0.00024764,2]
[331929955,1720861843342,-558.61,0.00024764,2]
[331929956,1720861843353,-500.0,0.00024764,2]
[331929957,1720861843363,-500.0,0.00024764,2]
[331929958,1720861843374,-582.8149012,0.00024764,2]
[331929959,1720861843383,-502.68631255,0.00024764,2]
[331929960,1720861843393,-502.33441454,0.00024764,2]
[331929961,1720861843500,-588.44936585,0.00024764,2]
[331929962,1720861843511,-500.0,0.00024764,2]
[331929963,1720861843521,-500.0,0.00024764,2]
[331929964,1720861843531,-507.288803,0.00024764,2]
[331929965,1720861843542,-500.0,0.00024764,2]
[331929966,1720861843552,-500.0,0.00024764,2]
[331929967,1720861843561,-500.0,0.00024764,2]
[331929968,1720861843571,-500.0,0.00024764,2]
[331929969,1720861843582,-500.0,0.00024764,2]
[331929970,1720861843592,-503.5152103,0.00024764,2]
[331929971,1720861843601,-500.0,0.00024764,2]
[331929972,1720861843611,-500.0,0.00024764,2]
[331929973,1720861843621,-500.0,0.00024764,2]
[331929974,1720861843631,-500.0,0.00024764,2]
[331929975,1720861843642,-500.0,0.00024764,2]
[331929976,1720861843652,-471.5951001,0.00024764,2]
[331929977,1720861843662,-500.0,0.00024764,2]
[331929978,1720861843672,-500.0,0.00024764,2]
[331929979,1720861843681,-500.0,0.00024764,2]
[331929980,1720861843691,-500.0,0.00024764,2]
[331929981,1720861843702,-153.0,0.00024765,2]
[331929982,1720861843712,-153.0,0.00024765,2]
[331929983,1720861843722,-153.0,0.00024765,2]
[331929984,1720861843733,-153.0,0.00024765,2]
[331929985,1720861843742,-153.0,0.00024765,2]
[331929986,1720861843754,-153.0,0.00024765,2]
[331929987,1720861843763,-153.0,0.00024765,2]
[331929988,1720861843772,-153.0,0.00024765,2]
[331929989,1720861843781,-153.0,0.00024765,2]
[331929990,1720861843791,-153.0,0.00024765,2]
[331929991,1720861843800,-153.0,0.00024765,2]
[331929992,1720861843809,-153.0,0.00024765,2]
[331929993,1720861843819,-153.0,0.00024765,2]
[331929994,1720861843828,-153.0,0.00024765,2]
[331929995,1720861843838,-153.0,0.00024765,2]
[331929996,1720861843847,-153.0,0.00024765,2]
[331929997,1720861843857,-153.0,0.00024765,2]
[331929998,1720861843867,-304.57578418,0.00024766,2]
[331929999,1720861843876,-205.45547941,0.00024766,2]
[331930000,1720861843886,-500.0,0.00024766,2]
[331930001,1720861843896,-500.0,0.00024766,2]
[331930002,1720861843906,-500.0,0.00024766,2]
[331930003,1720861843916,-256.98708877,0.00024766,2]
[331930004,1720861843926,-563.0327418,0.00024766,2]
[331930005,1720861843936,-500.0,0.00024766,2]
[331930006,1720861843945,-500.0,0.00024766,2]
[331930007,1720861843954,-500.0,0.00024766,2]
[331930008,1720861843964,-151.0,0.00024766,7]
[331930009,1720861843973,-151.0,0.00024766,7]
[331930010,1720861843982,-151.0,0.00024766,7]
[331930011,1720861843991,-151.0,0.00024766,7]
[331930012,1720861844001,-151.0,0.00024766,7]
[331930013,1720861844010,-151.0,0.00024766,7]
[331930014,1720861844019,-151.0,0.00024766,7]
[331930015,1720861844028,-151.0,0.00024766,4]
[331930016,1720861844038,-151.0,0.00024766,7]
[331930017,1720861844048,-151.0,0.00024766,7]
[331930018,1720861844057,-500.0,0.00024766,2]
[331930019,1720861844066,-151.0,0.00024766,7]
[331930020,1720861844075,-151.0,0.00024766,7]
[331930021,1720861844085,-151.0,0.00024766,7]
[331930022,1720861844094,-151.0,0.00024766,7]
[331930023,1720861844103,-151.0,0.00024766,7]
[331930024,1720861844112,-178.070638,0.00024766,7]
[331930025,1720861844121,-151.0,0.00024767,7]
[331930026,1720861844130,-151.0,0.00024767,7]
[331930027,1720861844139,-153.866782,0.00024767,7]
[331930028,1720861844148,-397.18861436,0.00024767,2]
[331930043,1720862496264,297.66024478,0.00016255,2]
[331930044,1720862496291,1025.5,0.00016255,2]
[331930045,1720862496322,476.27941139,0.00016255,2]
[331930051,1720862831151,-233.086961,0.00021096,2]
[331930052,1720862831177,-494.32704803,0.00021917,2]
[331930053,1720862831203,-247.7705131,0.00022496,2]
[331930054,1720862831230,-389.959132,0.00022953,2]
[331930055,1720862831256,-501.1826551,0.00022976,2]
[331930056,1720862831278,-702.973076,0.00023266,2]
[331930057,1720862831305,-390.8381046,0.00023706,2]
[331930058,1720862831328,-1361.19830126,0.00024453,2]
[331930059,1720862831353,-300.0,0.0002472,2]
[331930060,1720862831377,-273.0,0.00024721,2]
[331930061,1720862831404,-273.0,0.00024721,2]
[331930062,1720862831429,-273.0,0.00024721,2]
[331930063,1720862831455,-273.0,0.00024721,2]
[331930064,1720862831479,-273.0,0.00024721,2]
[331930065,1720862831505,-153.0,0.00024721,2]
[331930066,1720862831534,-153.0,0.00024721,2]
[331930067,1720862831558,-153.0,0.00024721,2]
[331930068,1720862831584,-153.0,0.00024721,2]
[331930069,1720862831609,-153.0,0.00024721,2]
[331930070,1720862831635,-153.0,0.00024721,2]
[331930071,1720862831666,-153.0,0.00024721,2]
[331930072,1720862831689,-153.0,0.00024721,2]
[331930073,1720862831713,-273.0,0.00024721,2]
[331930074,1720862831738,-273.0,0.00024721,2]
[331930075,1720862831763,-273.0,0.00024721,2]
[331930076,1720862831787,-273.0,0.00024721,2]
[331930077,1720862831815,-273.0,0.00024721,2]
[331930078,1720862831839,-273.0,0.00024721,2]
[331930079,1720862831864,-228.06956453,0.00024721,2]
[331930099,1720862927835,150.0,0.00012,2]
[331930230,1720863038354,-1361.19830126,0.00024437,2]
[331930231,1720863038364,-1053.84419532,0.00024621,2]
[331930232,1720863038373,-570.83505356,0.00024666,2]
[331930233,1720863038384,-300.0,0.0002472,2]
[331930234,1720863038393,-44.93043547,0.00024721,2]
[331930235,1720863038403,-273.0,0.00024721,2]
[331930237,1720863038413,-273.0,0.00024721,2]
[331930238,1720863038422,-273.0,0.00024721,2]
[331930239,1720863038431,-273.0,0.00024721,2]
[331930240,1720863038441,-273.0,0.00024721,2]
[331930241,1720863038450,-273.0,0.00024721,2]
[331930242,1720863038459,-273.0,0.00024721,2]
[331930243,1720863038469,-273.0,0.00024721,2]
[331930244,1720863038478,-273.0,0.00024721,2]
[331930245,1720863038487,-273.0,0.00024721,2]
[331930246,1720863038496,-273.0,0.00024721,2]
[331930247,1720863038506,-273.0,0.00024721,2]
[331930248,1720863038515,-273.0,0.00024721,2]
[331930249,1720863038524,-273.0,0.00024721,2]
[331930250,1720863038533,-273.0,0.00024721,2]
[331930251,1720863038542,-273.0,0.00024721,2]
[331930252,1720863038552,-273.0,0.00024721,2]
[331930253,1720863038561,-273.0,0.00024721,2]
[331930254,1720863038570,-273.0,0.00024721,2]
[331930255,1720863038579,-273.0,0.00024721,2]
[331930256,1720863038588,-153.0,0.00024721,2]
[331930257,1720863038598,-153.0,0.00024721,2]
[331930258,1720863038607,-153.0,0.00024721,2]
[331930259,1720863038616,-153.0,0.00024721,2]
[331930260,1720863038625,-153.0,0.00024721,2]
[331930261,1720863038635,-153.0,0.00024721,2]
[331930262,1720863038644,-153.0,0.00024721,2]
[331930263,1720863038653,-273.0,0.00024721,2]
[331930264,1720863038662,-273.0,0.00024721,2]
[331930265,1720863038671,-273.0,0.00024721,2]
[331930266,1720863038680,-273.0,0.00024721,2]
[331930267,1720863038690,-273.0,0.00024721,2]
[331930268,1720863038699,-273.0,0.00024721,2]
[331930269,1720863038710,-273.0,0.00024721,2]
[331930270,1720863038723,-273.0,0.00024721,2]
[331930271,1720863038732,-273.0,0.00024721,2]
[331930272,1720863038741,-273.0,0.00024721,2]
[331930273,1720863038750,-273.0,0.00024721,2]
[331930274,1720863038760,-273.0,0.00024721,2]
[331930275,1720863038770,-273.0,0.00024721,2]
[331930276,1720863038779,-273.0,0.00024721,2]
[331930277,1720863038788,-273.0,0.00024721,2]
[331930278,1720863038799,-273.0,0.00024721,2]
[331930279,1720863038810,-273.0,0.00024721,2]
[331930280,1720863038819,-153.0,0.00024721,2]
[331930281,1720863038831,-153.0,0.00024721,2]
[331930282,1720863038840,-153.0,0.00024721,2]
[331930283,1720863038850,-153.0,0.00024721,2]
[331930284,1720863038859,-153.0,0.00024721,2]
[331930285,1720863038868,-153.0,0.00024721,2]
[331930286,1720863038877,-153.0,0.00024721,2]
[331930287,1720863038889,-273.0,0.00024721,2]
[331930288,1720863038898,-273.0,0.00024721,2]
[331930289,1720863038907,-273.0,0.00024721,2]
[331930290,1720863038920,-273.0,0.00024721,2]
[331930291,1720863038929,-273.0,0.00024721,2]
[331930292,1720863038938,-273.0,0.00024721,2]
[331930293,1720863038947,-273.0,0.00024721,2]
[331930294,1720863038957,-273.0,0.00024721,2]
[331930295,1720863038966,-273.0,0.00024721,2]
[331930296,1720863038975,-273.0,0.00024721,2]
[331930297,1720863038985,-273.0,0.00024721,2]
[331930298,1720863038994,-273.0,0.00024721,2]
[331930299,1720863039004,-273.0,0.00024721,2]
[331930300,1720863039014,-273.0,0.00024721,2]
[331930301,1720863039023,-273.0,0.00024721,2]
[331930302,1720863039033,-273.0,0.00024721,2]
[331930303,1720863039042,-273.0,0.00024721,2]
[331930304,1720863039051,-153.0,0.00024721,2]
[331930305,1720863039061,-153.0,0.00024721,2]
[331930306,1720863039070,-153.0,0.00024721,2]
[331930307,1720863039080,-153.0,0.00024721,2]
[331930308,1720863039089,-153.0,0.00024721,2]
[331930309,1720863039098,-153.0,0.00024721,2]
[331930310,1720863039107,-153.0,0.00024721,2]
[331930311,1720863039116,-273.0,0.00024721,2]
[331930312,1720863039125,-273.0,0.00024721,2]
[331930313,1720863039135,-273.0,0.00024721,2]
[331930314,1720863039143,-273.0,0.00024721,2]
[331930315,1720863039152,-273.0,0.00024721,2]
[331930316,1720863039162,-273.0,0.00024721,2]
[331930317,1720863039171,-273.0,0.00024721,2]
[331930318,1720863039180,-273.0,0.00024721,2]
[331930319,1720863039189,-273.0,0.00024721,2]
[331930320,1720863039198,-273.0,0.00024721,2]
[331930321,1720863039207,-273.0,0.00024721,2]
[331930322,1720863039217,-273.0,0.00024721,2]
[331930323,1720863039229,-153.0,0.00024721,2]
[331930324,1720863039238,-153.0,0.00024721,2]
[331930325,1720863039247,-153.0,0.00024721,2]
[331930326,1720863039257,-153.0,0.00024721,2]
[331930327,1720863039266,-153.0,0.00024721,2]
[331930328,1720863039275,-153.0,0.00024721,2]
[331930329,1720863039285,-153.0,0.00024721,2]
[331930330,1720863039294,-273.0,0.00024721,2]
[331930331,1720863039304,-273.0,0.00024721,2]
[331930332,1720863039313,-273.0,0.00024721,2]
[331930333,1720863039323,-273.0,0.00024721,2]
[331930334,1720863039332,-273.0,0.00024721,2]
[331930335,1720863039341,-273.0,0.00024721,2]
[331930336,1720863039350,-273.0,0.00024721,2]
[331930338,1720863039360,-273.0,0.00024721,2]
[331930340,1720863039371,-273.0,0.00024721,2]
[331930341,1720863039381,-153.0,0.00024721,2]
[331930342,1720863039392,-153.0,0.00024721,2]
[331930343,1720863039403,-153.0,0.00024721,2]
[331930344,1720863039413,-153.0,0.00024721,2]
[331930345,1720863039422,-153.0,0.00024721,2]
[331930346,1720863039433,-153.0,0.00024721,2]
[331930347,1720863039442,-153.0,0.00024721,2]
[331930348,1720863039452,-273.0,0.00024721,2]
[331930349,1720863039462,-273.0,0.00024721,2]
[331930350,1720863039471,-273.0,0.00024721,2]
[331930351,1720863039481,-273.0,0.00024721,2]
[331930352,1720863039491,-273.0,0.00024721,2]
[331930353,1720863039500,-273.0,0.00024721,2]
[331930354,1720863039509,-273.0,0.00024721,2]
[331930355,1720863039519,-273.0,0.00024721,2]
[331930357,1720863039528,-273.0,0.00024721,2]
[331930359,1720863039538,-153.0,0.00024721,2]
[331930361,1720863039548,-153.0,0.00024721,2]
[331930362,1720863039557,-153.0,0.00024721,2]
[331930363,1720863039566,-153.0,0.00024721,2]
[331930364,1720863039576,-153.0,0.00024721,2]
[331930365,1720863039585,-273.0,0.00024721,2]
[331930366,1720863039595,-496.02,0.00024756,3]
[331930367,1720863039604,-188.0,0.0002476,2]
[331930368,1720863039614,-500.0,0.0002476,2]
[331930370,1720863039623,-500.0,0.0002476,2]
[331930372,1720863039632,-422.1418869,0.0002476,2]
[331930374,1720863039643,-500.0,0.0002476,2]
[331930376,1720863039653,-3268.86,0.0002476,2]
[331930377,1720863039662,-1890.14,0.0002476,2]
[331930378,1720863039672,-500.0,0.0002476,2]
[331930379,1720863039682,-500.0,0.0002476,2]
[331930380,1720863039692,-500.0,0.0002476,2]
[331930381,1720863039701,-500.0,0.0002476,2]
[331930382,1720863039716,-500.0,0.0002476,2]
[331930383,1720863039725,-571.81,0.0002476,2]
[331930384,1720863039734,-500.0,0.0002476,2]
[331930385,1720863039744,-500.0,0.00024761,2]
[331930386,1720863039755,-183.02,0.00024761,2]